[Event "Titled Tuesday Blitz April 12 Late 2022"]
[White "Suder, Jakub"]
[Black "Bach, Matthias"]
[WhiteFideId "1195310"]
[BlackFideId "4603168"]
[WhiteElo "2058"]
[BlackElo "2165"]
[Result "1-0"]
[Round "01"]
[TimeControl "180+1"]
[Date "2022.04.13"]
[WhiteClock "0:01:00"]
[BlackClock "0:00:40"]

1. d4 {[%clk 0:03:00]}  Nf6 {[%clk 0:02:59]} 2. c4 {[%clk 0:03:00]}  c5 {[%clk 0:02:59]} 3. d5 {[%clk 0:02:59]}  e6 {[%clk 0:03:00]} 4. Nc3 {[%clk 0:02:59]}  exd5 {[%clk 0:03:00]} 5. cxd5 {[%clk 0:03:00]}  d6 {[%clk 0:03:01]} 6. e4 {[%clk 0:03:00]}  g6 {[%clk 0:03:01]} 7. f4 {[%clk 0:02:59]}  Bg7 {[%clk 0:03:01]} 8. Bb5+ {[%clk 0:03:00]}  Bd7 {[%clk 0:03:01]} 9. e5 {[%clk 0:02:59]}  Qe7 {[%clk 0:02:59]} 10. Nf3 {[%clk 0:02:58]}  Ng4 {[%clk 0:02:50]} 11. h3 {[%clk 0:02:51]}  Nh6 {[%clk 0:02:49]} 12. O-O {[%clk 0:02:51]}  O-O {[%clk 0:02:47]} 13. Re1 {[%clk 0:02:46]}  Nf5 {[%clk 0:02:41]} 14. Bf1 {[%clk 0:02:40]}  Ng3 {[%clk 0:02:36]} 15. Bd3 {[%clk 0:02:31]}  Bf5 {[%clk 0:02:34]} 16. Kh2 {[%clk 0:02:18]}  Bxd3 {[%clk 0:02:33]} 17. Qxd3 {[%clk 0:02:13]}  Nf5 {[%clk 0:02:33]} 18. g4 {[%clk 0:02:13]}  Nh4 {[%clk 0:02:31]} 19. Nxh4 {[%clk 0:02:13]}  Qxh4 {[%clk 0:02:30]} 20. Qg3 {[%clk 0:02:00]}  Qxg3+ {[%clk 0:02:23]} 21. Kxg3 {[%clk 0:02:01]}  dxe5 {[%clk 0:02:21]} 22. fxe5 {[%clk 0:02:01]}  Nd7 {[%clk 0:02:21]} 23. e6 {[%clk 0:01:57]}  fxe6 {[%clk 0:02:19]} 24. dxe6 {[%clk 0:01:58]}  Bd4 {[%clk 0:02:08]} 25. Be3 {[%clk 0:01:36]}  Nb6 {[%clk 0:01:41]} 26. Ne4 {[%clk 0:01:23]}  Bxe3 {[%clk 0:01:33]} 27. Rxe3 {[%clk 0:01:23]}  Nd5 {[%clk 0:01:33]} 28. Ree1 {[%clk 0:01:20]}  Rae8 {[%clk 0:01:24]} 29. Nxc5 {[%clk 0:01:13]}  b6 {[%clk 0:01:23]} 30. Nd7 {[%clk 0:01:11]}  Nc7 {[%clk 0:00:49]} 31. Nxf8 {[%clk 0:01:10]}  Kxf8 {[%clk 0:00:50]} 32. Rf1+ {[%clk 0:01:08]}  Kg8 {[%clk 0:00:46]} 33. Rf7 {[%clk 0:01:08]}  Nxe6 {[%clk 0:00:45]} 34. Rxa7 {[%clk 0:01:08]}  Nd4 {[%clk 0:00:44]} 35. Rd1 {[%clk 0:01:06]}  Re3+ {[%clk 0:00:42]} 36. Kf2 {[%clk 0:01:01]}  Re2+ {[%clk 0:00:41]} 37. Kf1 {[%clk 0:01:01]}  Re4 {[%clk 0:00:40]} 38. Ra4 {[%clk 0:01:00]} 1-0


[Site "https://www.chess.com"]

[Event "Titled Tuesday Blitz April 12 Late 2022"]
[White "Svane, Rasmus"]
[Black "Vusatiuk, Vladimir"]
[WhiteFideId "4657101"]
[BlackFideId "14118610"]
[WhiteElo "2645"]
[BlackElo "2157"]
[Result "1-0"]
[Round "01"]
[TimeControl "180+1"]
[Date "2022.04.12"]
[WhiteClock "0:00:49"]
[BlackClock "0:00:06"]

1. Nf3 {[%clk 0:03:00]}  Nf6 {[%clk 0:02:50]} 2. g3 {[%clk 0:03:00]}  d5 {[%clk 0:02:49]} 3. Bg2 {[%clk 0:03:01]}  e6 {[%clk 0:02:49]} 4. O-O {[%clk 0:03:01]}  b5 {[%clk 0:02:48]} 5. d3 {[%clk 0:02:59]}  Bb7 {[%clk 0:02:33]} 6. c4 {[%clk 0:02:59]}  dxc4 {[%clk 0:01:50]} 7. dxc4 {[%clk 0:03:00]}  Qxd1 {[%clk 0:01:50]} 8. Rxd1 {[%clk 0:03:01]}  b4 {[%clk 0:01:51]} 9. Bf4 {[%clk 0:02:57]}  Na6 {[%clk 0:01:43]} 10. Nbd2 {[%clk 0:02:46]}  Bd6 {[%clk 0:01:35]} 11. Nb3 {[%clk 0:02:46]}  Bxf4 {[%clk 0:01:12]} 12. gxf4 {[%clk 0:02:46]}  Ke7 {[%clk 0:01:12]} 13. Na5 {[%clk 0:02:45]}  Be4 {[%clk 0:01:11]} 14. Ne5 {[%clk 0:02:46]}  Bxg2 {[%clk 0:01:06]} 15. Kxg2 {[%clk 0:02:47]}  Rhc8 {[%clk 0:00:35]} 16. Nac6+ {[%clk 0:02:44]}  Ke8 {[%clk 0:00:32]} 17. Rd4 {[%clk 0:02:45]}  Nb8 {[%clk 0:00:28]} 18. Rad1 {[%clk 0:02:37]}  Nxc6 {[%clk 0:00:28]} 19. Nxc6 {[%clk 0:02:38]}  a5 {[%clk 0:00:26]} 20. e4 {[%clk 0:02:39]}  Ng8 {[%clk 0:00:16]} 21. Rd7 {[%clk 0:02:39]}  h6 {[%clk 0:00:13]} 22. h4 {[%clk 0:02:34]}  g6 {[%clk 0:00:11]} 23. e5 {[%clk 0:02:30]}  h5 {[%clk 0:00:12]} 24. Kf3 {[%clk 0:02:30]}  Kf8 {[%clk 0:00:12]} 25. Ke4 {[%clk 0:02:00]}  Nh6 {[%clk 0:00:09]} 26. c5 {[%clk 0:01:06]}  Nf5 {[%clk 0:00:08]} 27. Nd4 {[%clk 0:01:06]}  Nxh4 {[%clk 0:00:06]} 28. Rh1 {[%clk 0:01:06]}  Nf5 {[%clk 0:00:07]} 29. Nxf5 {[%clk 0:01:06]}  exf5+ {[%clk 0:00:07]} 30. Kd5 {[%clk 0:01:06]}  Rd8 {[%clk 0:00:05]} 31. Kc6 {[%clk 0:01:03]}  Rxd7 {[%clk 0:00:05]} 32. Kxd7 {[%clk 0:01:04]}  a4 {[%clk 0:00:03]} 33. Kxc7 {[%clk 0:01:03]}  Ke7 {[%clk 0:00:04]} 34. c6 {[%clk 0:01:03]}  b3 {[%clk 0:00:02]} 35. axb3 {[%clk 0:01:02]}  axb3 {[%clk 0:00:03]} 36. Kb7 {[%clk 0:01:02]}  Ra4 {[%clk 0:00:03]} 37. c7 {[%clk 0:00:56]}  Rb4+ {[%clk 0:00:03]} 38. Kc6 {[%clk 0:00:53]}  Rc4+ {[%clk 0:00:04]} 39. Kb6 {[%clk 0:00:54]}  Ke8 {[%clk 0:00:02]} 40. Rh3 {[%clk 0:00:52]}  Ke7 {[%clk 0:00:01]} 41. Rxb3 {[%clk 0:00:51]}  Rc2 {[%clk 0:00:01]} 42. Rc3 {[%clk 0:00:49]}  Rxb2+ {[%clk 0:00:02]} 43. Kc6 {[%clk 0:00:50]}  h4 {[%clk 0:00:02]} 44. c8=Q {[%clk 0:00:50]}  h3 {[%clk 0:00:03]} 45. Qd7+ {[%clk 0:00:47]}  Kf8 {[%clk 0:00:03]} 46. Qd8+ {[%clk 0:00:48]}  Kg7 {[%clk 0:00:04]} 47. Qf6+ {[%clk 0:00:48]}  Kg8 {[%clk 0:00:04]} 48. Rxh3 {[%clk 0:00:48]}  Rc2+ {[%clk 0:00:04]} 49. Kb5 {[%clk 0:00:48]}  Rb2+ {[%clk 0:00:04]} 50. Ka4 {[%clk 0:00:48]}  Ra2+ {[%clk 0:00:05]} 51. Kb3 {[%clk 0:00:48]}  Ra3+ {[%clk 0:00:05]} 52. Kxa3 {[%clk 0:00:49]}  g5 {[%clk 0:00:06]} 53. Rh8# {[%clk 0:00:49]} 1-0


[Site "https://www.chess.com"]

[Event "Titled Tuesday Blitz April 12 Late 2022"]
[White "Tillyaev, Ulugbek"]
[Black "Lossi C., Cyrano Jose"]
[WhiteFideId "14202441"]
[BlackFideId "7301600"]
[WhiteElo "2377"]
[BlackElo "1811"]
[Result "1-0"]
[Round "01"]
[TimeControl "180+1"]
[Date "2022.04.13"]
[WhiteClock "0:00:52"]
[BlackClock "0:00:10"]

1. e4 {[%clk 0:03:00]}  c6 {[%clk 0:02:58]} 2. d4 {[%clk 0:03:00]}  d5 {[%clk 0:02:59]} 3. exd5 {[%clk 0:03:01]}  cxd5 {[%clk 0:02:58]} 4. Bd3 {[%clk 0:03:01]}  Nf6 {[%clk 0:02:58]} 5. h3 {[%clk 0:03:01]}  Nc6 {[%clk 0:02:57]} 6. c3 {[%clk 0:02:58]}  e6 {[%clk 0:02:52]} 7. Nf3 {[%clk 0:02:58]}  Be7 {[%clk 0:02:53]} 8. O-O {[%clk 0:02:58]}  O-O {[%clk 0:02:53]} 9. Re1 {[%clk 0:02:57]}  a6 {[%clk 0:02:46]} 10. Nbd2 {[%clk 0:02:50]}  b5 {[%clk 0:02:43]} 11. a3 {[%clk 0:02:49]}  Bb7 {[%clk 0:02:33]} 12. Ne5 {[%clk 0:02:36]}  Nxe5 {[%clk 0:02:03]} 13. dxe5 {[%clk 0:02:36]}  Ne4 {[%clk 0:02:00]} 14. Nxe4 {[%clk 0:02:36]}  dxe4 {[%clk 0:02:01]} 15. Bc2 {[%clk 0:02:36]}  Qxd1 {[%clk 0:01:54]} 16. Rxd1 {[%clk 0:02:37]}  Rfd8 {[%clk 0:01:31]} 17. Be3 {[%clk 0:02:37]}  f5 {[%clk 0:01:22]} 18. exf6 {[%clk 0:02:22]}  gxf6 {[%clk 0:01:23]} 19. Bb6 {[%clk 0:02:21]}  Rxd1+ {[%clk 0:00:57]} 20. Rxd1 {[%clk 0:02:22]}  Bd5 {[%clk 0:00:57]} 21. Re1 {[%clk 0:02:16]}  f5 {[%clk 0:00:56]} 22. Re3 {[%clk 0:01:55]}  Kf7 {[%clk 0:00:56]} 23. Re1 {[%clk 0:01:42]}  Rg8 {[%clk 0:00:56]} 24. Kf1 {[%clk 0:01:34]}  Bc4+ {[%clk 0:00:54]} 25. Kg1 {[%clk 0:01:34]}  h5 {[%clk 0:00:53]} 26. Rd1 {[%clk 0:01:31]}  Bd5 {[%clk 0:00:51]} 27. Kf1 {[%clk 0:01:31]}  Bc4+ {[%clk 0:00:51]} 28. Kg1 {[%clk 0:01:30]}  Bd5 {[%clk 0:00:50]} 29. Bc7 {[%clk 0:01:28]}  Bc5 {[%clk 0:00:48]} 30. Kf1 {[%clk 0:00:55]}  Bc4+ {[%clk 0:00:47]} 31. Kg1 {[%clk 0:00:55]}  Bd5 {[%clk 0:00:47]} 32. Kf1 {[%clk 0:00:55]}  Kf6 {[%clk 0:00:45]} 33. Bf4 {[%clk 0:00:53]}  Bc4+ {[%clk 0:00:42]} 34. Kg1 {[%clk 0:00:52]}  Be2 {[%clk 0:00:42]} 35. Rd7 {[%clk 0:00:49]}  Bf3 {[%clk 0:00:37]} 36. g3 {[%clk 0:00:48]}  e5 {[%clk 0:00:38]} 37. Bb3 {[%clk 0:00:47]}  Re8 {[%clk 0:00:27]} 38. Rf7+ {[%clk 0:00:43]}  Kg6 {[%clk 0:00:25]} 39. Be3 {[%clk 0:00:44]}  Bxe3 {[%clk 0:00:21]} 40. fxe3 {[%clk 0:00:44]}  Rd8 {[%clk 0:00:22]} 41. Re7 {[%clk 0:00:45]}  Rd2 {[%clk 0:00:18]} 42. Rxe5 {[%clk 0:00:44]}  Rg2+ {[%clk 0:00:18]} 43. Kf1 {[%clk 0:00:45]}  Rxb2 {[%clk 0:00:17]} 44. Be6 {[%clk 0:00:45]}  Kf6 {[%clk 0:00:14]} 45. Rxf5+ {[%clk 0:00:46]}  Kxe6 {[%clk 0:00:14]} 46. Rg5 {[%clk 0:00:46]}  a5 {[%clk 0:00:13]} 47. Rg6+ {[%clk 0:00:46]}  Kf5 {[%clk 0:00:12]} 48. Rc6 {[%clk 0:00:47]}  Rc2 {[%clk 0:00:11]} 49. Rc5+ {[%clk 0:00:47]}  Kg6 {[%clk 0:00:11]} 50. Ke1 {[%clk 0:00:47]}  b4 {[%clk 0:00:10]} 51. axb4 {[%clk 0:00:47]}  axb4 {[%clk 0:00:11]} 52. cxb4 {[%clk 0:00:48]}  Rxc5 {[%clk 0:00:10]} 53. bxc5 {[%clk 0:00:49]}  Kf6 {[%clk 0:00:10]} 54. Kd2 {[%clk 0:00:50]}  Ke5 {[%clk 0:00:11]} 55. Kc3 {[%clk 0:00:51]}  Kd5 {[%clk 0:00:10]} 56. Kb4 {[%clk 0:00:52]}  Bg2 {[%clk 0:00:10]} 57. h4 {[%clk 0:00:51]}  Bh3 {[%clk 0:00:11]} 58. Kb5 {[%clk 0:00:51]}  Bd7+ {[%clk 0:00:11]} 59. Kb6 {[%clk 0:00:52]}  Bc6 {[%clk 0:00:11]} 60. g4 {[%clk 0:00:48]}  hxg4 {[%clk 0:00:11]} 61. h5 {[%clk 0:00:49]}  g3 {[%clk 0:00:12]} 62. h6 {[%clk 0:00:50]}  g2 {[%clk 0:00:12]} 63. h7 {[%clk 0:00:50]}  g1=Q {[%clk 0:00:13]} 64. h8=Q {[%clk 0:00:51]}  Qb1+ {[%clk 0:00:13]} 65. Kc7 {[%clk 0:00:52]}  Kxc5 {[%clk 0:00:11]} 66. Qd4+ {[%clk 0:00:51]}  Kb5 {[%clk 0:00:10]} 67. Qb6+ {[%clk 0:00:52]} 1-0


[Site "https://www.chess.com"]

[Event "Titled Tuesday Blitz April 12 Late 2022"]
[White "Ward, Ieuan C"]
[Black "Lin, Dachey"]
[WhiteFideId "406627"]
[BlackFideId "2029650"]
[WhiteElo "2285"]
[BlackElo "2313"]
[Result "0-1"]
[Round "01"]
[TimeControl "180+1"]
[Date "2022.04.13"]
[WhiteClock "0:00:11"]
[BlackClock "0:01:06"]

1. e4 {[%clk 0:02:59]}  g5 {[%clk 0:02:48]} 2. d4 {[%clk 0:02:56]}  g4 {[%clk 0:02:48]} 3. c4 {[%clk 0:02:53]}  d6 {[%clk 0:02:48]} 4. Nc3 {[%clk 0:02:53]}  Bg7 {[%clk 0:02:47]} 5. Be3 {[%clk 0:02:52]}  h5 {[%clk 0:02:47]} 6. Be2 {[%clk 0:02:49]}  Nc6 {[%clk 0:02:42]} 7. d5 {[%clk 0:02:41]}  Ne5 {[%clk 0:02:42]} 8. Qc2 {[%clk 0:02:25]}  Nf6 {[%clk 0:02:39]} 9. f4 {[%clk 0:02:17]}  gxf3 {[%clk 0:02:37]} 10. Nxf3 {[%clk 0:02:14]}  Nfg4 {[%clk 0:02:32]} 11. Bg5 {[%clk 0:02:00]}  f6 {[%clk 0:02:07]} 12. Bd2 {[%clk 0:01:53]}  e6 {[%clk 0:01:46]} 13. h3 {[%clk 0:01:47]}  Nxf3+ {[%clk 0:01:43]} 14. gxf3 {[%clk 0:01:40]}  Ne5 {[%clk 0:01:38]} 15. f4 {[%clk 0:01:39]}  Nf7 {[%clk 0:01:36]} 16. O-O-O {[%clk 0:01:36]}  e5 {[%clk 0:01:27]} 17. Rdf1 {[%clk 0:01:14]}  Bh6 {[%clk 0:01:26]} 18. Bxh5 {[%clk 0:01:02]}  Qe7 {[%clk 0:01:26]} 19. Bxf7+ {[%clk 0:00:55]}  Kxf7 {[%clk 0:01:26]} 20. f5 {[%clk 0:00:54]}  Bd7 {[%clk 0:01:23]} 21. Rfg1 {[%clk 0:00:50]}  Rh7 {[%clk 0:01:19]} 22. Bxh6 {[%clk 0:00:49]}  Rxh6 {[%clk 0:01:19]} 23. Qg2 {[%clk 0:00:48]}  Rah8 {[%clk 0:01:19]} 24. Nd1 {[%clk 0:00:20]}  Ke8 {[%clk 0:01:15]} 25. Ne3 {[%clk 0:00:19]}  Rh4 {[%clk 0:01:13]} 26. Qg6+ {[%clk 0:00:15]}  Kd8 {[%clk 0:01:11]} 27. Ng4 {[%clk 0:00:16]}  Rf8 {[%clk 0:01:06]} 28. Kd2 {[%clk 0:00:11]}  Be8 {[%clk 0:01:06]} 0-1


[Site "https://www.chess.com"]

[Event "Titled Tuesday Blitz April 12 Late 2022"]
[White "Xu, Yi"]
[Black "Szalay, Karoly"]
[WhiteFideId "8605564"]
[BlackFideId "2600544"]
[WhiteElo "2471"]
[BlackElo "2432"]
[Result "0-1"]
[Round "01"]
[TimeControl "180+1"]
[Date "2022.04.13"]
[WhiteClock "0:00:02"]
[BlackClock "0:00:07"]

1. e4 {[%clk 0:02:58]}  e5 {[%clk 0:03:00]} 2. Nf3 {[%clk 0:02:58]}  Nc6 {[%clk 0:03:00]} 3. Bc4 {[%clk 0:02:59]}  Nf6 {[%clk 0:03:00]} 4. d3 {[%clk 0:02:59]}  Bc5 {[%clk 0:02:55]} 5. O-O {[%clk 0:02:59]}  O-O {[%clk 0:02:43]} 6. h3 {[%clk 0:02:56]}  h6 {[%clk 0:02:41]} 7. c3 {[%clk 0:02:55]}  d6 {[%clk 0:02:41]} 8. Re1 {[%clk 0:02:53]}  a6 {[%clk 0:02:41]} 9. a4 {[%clk 0:02:52]}  Be6 {[%clk 0:02:41]} 10. Bxe6 {[%clk 0:02:49]}  fxe6 {[%clk 0:02:42]} 11. b4 {[%clk 0:02:49]}  Bb6 {[%clk 0:02:40]} 12. a5 {[%clk 0:02:48]}  Ba7 {[%clk 0:02:41]} 13. Ra2 {[%clk 0:02:48]}  Nh5 {[%clk 0:02:38]} 14. Nbd2 {[%clk 0:02:38]}  Nf4 {[%clk 0:02:27]} 15. Nf1 {[%clk 0:02:37]}  Qf6 {[%clk 0:02:21]} 16. Bxf4 {[%clk 0:02:35]}  exf4 {[%clk 0:02:09]} 17. d4 {[%clk 0:02:34]}  e5 {[%clk 0:02:09]} 18. Rd2 {[%clk 0:02:22]}  exd4 {[%clk 0:02:02]} 19. cxd4 {[%clk 0:02:19]}  Rae8 {[%clk 0:02:00]} 20. N1h2 {[%clk 0:02:19]}  g5 {[%clk 0:01:54]} 21. e5 {[%clk 0:02:07]}  Qg6 {[%clk 0:01:51]} 22. Ng4 {[%clk 0:02:07]}  Kg7 {[%clk 0:01:45]} 23. d5 {[%clk 0:01:53]}  Nxe5 {[%clk 0:01:39]} 24. Nfxe5 {[%clk 0:01:51]}  dxe5 {[%clk 0:01:40]} 25. Nxe5 {[%clk 0:01:51]}  Qd6 {[%clk 0:01:39]} 26. Rde2 {[%clk 0:01:49]}  Qxb4 {[%clk 0:01:32]} 27. Qc2 {[%clk 0:01:35]}  Qd6 {[%clk 0:01:27]} 28. Qb2 {[%clk 0:01:35]}  Kh7 {[%clk 0:01:24]} 29. Qxb7 {[%clk 0:01:28]}  Bc5 {[%clk 0:01:09]} 30. Qb1+ {[%clk 0:01:13]}  Kg7 {[%clk 0:01:09]} 31. Qd3 {[%clk 0:01:10]}  Re7 {[%clk 0:00:59]} 32. Nc6 {[%clk 0:01:01]}  Rxe2 {[%clk 0:00:56]} 33. Rxe2 {[%clk 0:01:01]}  Qf6 {[%clk 0:00:54]} 34. Re1 {[%clk 0:00:54]}  f3 {[%clk 0:00:50]} 35. Qc2 {[%clk 0:00:52]}  Bd6 {[%clk 0:00:41]} 36. g3 {[%clk 0:00:47]}  Rf7 {[%clk 0:00:31]} 37. Kh2 {[%clk 0:00:41]}  Qf5 {[%clk 0:00:29]} 38. Qc3+ {[%clk 0:00:40]}  Kh7 {[%clk 0:00:27]} 39. Re8 {[%clk 0:00:38]}  Qxd5 {[%clk 0:00:24]} 40. Qh8+ {[%clk 0:00:34]}  Kg6 {[%clk 0:00:25]} 41. Qg8+ {[%clk 0:00:32]}  Kh5 {[%clk 0:00:22]} 42. Re7 {[%clk 0:00:20]}  Bxg3+ {[%clk 0:00:17]} 43. Kxg3 {[%clk 0:00:19]}  Qd6+ {[%clk 0:00:13]} 44. Re5 {[%clk 0:00:19]}  Rf6 {[%clk 0:00:10]} 45. Qe8+ {[%clk 0:00:17]}  Rg6 {[%clk 0:00:10]} 46. Nd4 {[%clk 0:00:06]}  Qxd4 {[%clk 0:00:09]} 47. Re4 {[%clk 0:00:06]}  Qd6+ {[%clk 0:00:09]} 48. Kxf3 {[%clk 0:00:05]}  Qd3+ {[%clk 0:00:09]} 49. Kg2 {[%clk 0:00:05]}  c5 {[%clk 0:00:06]} 50. Rg4 {[%clk 0:00:05]}  c4 {[%clk 0:00:05]} 51. Qf7 {[%clk 0:00:04]}  c3 {[%clk 0:00:05]} 52. Rg3 {[%clk 0:00:05]}  Qe4+ {[%clk 0:00:05]} 53. Kh2 {[%clk 0:00:03]}  c2 {[%clk 0:00:06]} 54. Qc7 {[%clk 0:00:03]}  Qe2 {[%clk 0:00:06]} 55. Qc3 {[%clk 0:00:03]}  Rf6 {[%clk 0:00:05]} 56. Rg2 {[%clk 0:00:01]}  Rxf2 {[%clk 0:00:05]} 57. Rxf2 {[%clk 0:00:01]}  Qxf2+ {[%clk 0:00:06]} 58. Kh1 {[%clk 0:00:02]}  Qf1+ {[%clk 0:00:06]} 59. Kh2 {[%clk 0:00:02]}  c1=Q {[%clk 0:00:07]} 60. Qf3+ {[%clk 0:00:02]}  Qxf3 {[%clk 0:00:07]} 61. h4 {[%clk 0:00:02]}  Qch1# {[%clk 0:00:07]} 0-1


[Site "https://www.chess.com"]

[Event "Titled Tuesday Blitz April 12 Late 2022"]
[White "Zanette, Edgard Vinicius"]
[Black "Yedidia, Daniel"]
[WhiteFideId "2109263"]
[BlackFideId "30905907"]
[WhiteElo "2182"]
[BlackElo "2611"]
[Result "0-1"]
[Round "01"]
[TimeControl "180+1"]
[Date "2022.04.13"]
[WhiteClock "0:00:05"]
[BlackClock "0:00:07"]

1. e4 {[%clk 0:03:00]}  e5 {[%clk 0:02:52]} 2. Nf3 {[%clk 0:02:59]}  Nc6 {[%clk 0:02:52]} 3. Bb5 {[%clk 0:02:58]}  a6 {[%clk 0:02:52]} 4. Ba4 {[%clk 0:02:58]}  Nf6 {[%clk 0:02:53]} 5. O-O {[%clk 0:02:57]}  Be7 {[%clk 0:02:53]} 6. Bxc6 {[%clk 0:02:56]}  dxc6 {[%clk 0:02:53]} 7. d3 {[%clk 0:02:55]}  Nd7 {[%clk 0:02:52]} 8. Nbd2 {[%clk 0:02:54]}  O-O {[%clk 0:02:51]} 9. Nc4 {[%clk 0:02:54]}  f6 {[%clk 0:02:52]} 10. b3 {[%clk 0:02:34]}  Nc5 {[%clk 0:02:51]} 11. Ba3 {[%clk 0:02:23]}  Bg4 {[%clk 0:02:48]} 12. Ne3 {[%clk 0:02:16]}  Bh5 {[%clk 0:02:46]} 13. Nf5 {[%clk 0:02:13]}  Bd6 {[%clk 0:02:45]} 14. h3 {[%clk 0:02:04]}  Ne6 {[%clk 0:02:44]} 15. Nxd6 {[%clk 0:01:47]}  cxd6 {[%clk 0:02:45]} 16. g4 {[%clk 0:01:47]}  Bf7 {[%clk 0:02:44]} 17. Bc1 {[%clk 0:01:46]}  d5 {[%clk 0:02:44]} 18. Be3 {[%clk 0:01:42]}  Qd7 {[%clk 0:02:36]} 19. Qe2 {[%clk 0:01:40]}  Rad8 {[%clk 0:02:33]} 20. Nh4 {[%clk 0:01:29]}  g6 {[%clk 0:02:25]} 21. Rad1 {[%clk 0:01:26]}  Qe7 {[%clk 0:02:17]} 22. Ng2 {[%clk 0:01:23]}  d4 {[%clk 0:02:12]} 23. Bh6 {[%clk 0:01:18]}  Rfe8 {[%clk 0:02:11]} 24. f4 {[%clk 0:01:19]}  Nc7 {[%clk 0:02:00]} 25. fxe5 {[%clk 0:01:18]}  fxe5 {[%clk 0:01:59]} 26. h4 {[%clk 0:01:11]}  Ne6 {[%clk 0:01:49]} 27. Rf2 {[%clk 0:01:04]}  Rd7 {[%clk 0:01:44]} 28. Rdf1 {[%clk 0:01:02]}  Qd8 {[%clk 0:01:41]} 29. Qf3 {[%clk 0:00:52]}  Ree7 {[%clk 0:01:36]} 30. Qg3 {[%clk 0:00:50]}  Qc7 {[%clk 0:01:26]} 31. Rf6 {[%clk 0:00:48]}  Ng7 {[%clk 0:01:15]} 32. h5 {[%clk 0:00:35]}  Ne8 {[%clk 0:01:12]} 33. R6f2 {[%clk 0:00:30]}  Qd6 {[%clk 0:01:00]} 34. Bg5 {[%clk 0:00:28]}  Re6 {[%clk 0:00:58]} 35. h6 {[%clk 0:00:28]}  Qf8 {[%clk 0:00:51]} 36. Nh4 {[%clk 0:00:25]}  Nd6 {[%clk 0:00:51]} 37. Nf3 {[%clk 0:00:23]}  Qe8 {[%clk 0:00:48]} 38. Nd2 {[%clk 0:00:20]}  b5 {[%clk 0:00:46]} 39. b4 {[%clk 0:00:18]}  Nb7 {[%clk 0:00:37]} 40. Nb3 {[%clk 0:00:17]}  Qf8 {[%clk 0:00:30]} 41. a3 {[%clk 0:00:14]}  a5 {[%clk 0:00:28]} 42. bxa5 {[%clk 0:00:13]}  Qxa3 {[%clk 0:00:28]} 43. Ra1 {[%clk 0:00:11]}  Qf8 {[%clk 0:00:25]} 44. a6 {[%clk 0:00:11]}  Nd6 {[%clk 0:00:22]} 45. a7 {[%clk 0:00:12]}  Qa8 {[%clk 0:00:22]} 46. Nc5 {[%clk 0:00:08]}  Rxa7 {[%clk 0:00:20]} 47. Rxa7 {[%clk 0:00:09]}  Qxa7 {[%clk 0:00:20]} 48. Nxe6 {[%clk 0:00:09]}  Bxe6 {[%clk 0:00:11]} 49. Qxe5 {[%clk 0:00:10]}  Qd7 {[%clk 0:00:11]} 50. Rf6 {[%clk 0:00:08]}  Nf7 {[%clk 0:00:09]} 51. Qb8+ {[%clk 0:00:08]}  Qc8 {[%clk 0:00:09]} 52. Qxc8+ {[%clk 0:00:06]}  Bxc8 {[%clk 0:00:09]} 53. Rxc6 {[%clk 0:00:06]}  Bxg4 {[%clk 0:00:07]} 54. Rc8+ {[%clk 0:00:04]}  Bxc8 {[%clk 0:00:06]} 55. Bf6 {[%clk 0:00:04]}  Nxh6 {[%clk 0:00:06]} 56. Bxd4 {[%clk 0:00:05]}  Ng4 {[%clk 0:00:07]} 0-1


[Site "https://www.chess.com"]

[Event "Titled Tuesday Blitz April 12 Late 2022"]
[White "Baches Garcia, Guillermo"]
[Black "Coelho, Ramyres Santana"]
[WhiteFideId "2209764"]
[BlackFideId "2120690"]
[WhiteElo "2502"]
[BlackElo "1888"]
[Result "1-0"]
[Round "02"]
[TimeControl "180+1"]
[Date "2022.04.13"]
[WhiteClock "0:01:45"]
[BlackClock "0:02:13"]

1. e4 {[%clk 0:03:00]}  c5 {[%clk 0:02:59]} 2. Nf3 {[%clk 0:03:00]}  d6 {[%clk 0:02:58]} 3. d4 {[%clk 0:03:01]}  cxd4 {[%clk 0:02:58]} 4. Nxd4 {[%clk 0:03:01]}  Nf6 {[%clk 0:02:59]} 5. Nc3 {[%clk 0:03:02]}  a6 {[%clk 0:02:59]} 6. Bd3 {[%clk 0:03:02]}  e6 {[%clk 0:02:59]} 7. f4 {[%clk 0:03:00]}  b5 {[%clk 0:02:59]} 8. Qf3 {[%clk 0:03:00]}  Bb7 {[%clk 0:02:59]} 9. a3 {[%clk 0:03:00]}  Nbd7 {[%clk 0:02:58]} 10. g4 {[%clk 0:02:58]}  Nb6 {[%clk 0:02:56]} 11. g5 {[%clk 0:02:54]}  Nfd7 {[%clk 0:02:54]} 12. h4 {[%clk 0:02:43]}  Nc5 {[%clk 0:02:50]} 13. h5 {[%clk 0:02:37]}  Nxd3+ {[%clk 0:02:50]} 14. cxd3 {[%clk 0:02:36]}  d5 {[%clk 0:02:48]} 15. e5 {[%clk 0:02:28]}  Rc8 {[%clk 0:02:45]} 16. g6 {[%clk 0:02:24]}  hxg6 {[%clk 0:02:44]} 17. hxg6 {[%clk 0:02:22]}  Rxh1+ {[%clk 0:02:45]} 18. Qxh1 {[%clk 0:02:20]}  fxg6 {[%clk 0:02:39]} 19. Qh3 {[%clk 0:02:04]}  Rxc3 {[%clk 0:02:23]} 20. Qxe6+ {[%clk 0:01:55]}  Be7 {[%clk 0:02:17]} 21. Qxg6+ {[%clk 0:01:48]}  Kf8 {[%clk 0:02:16]} 22. Ne6+ {[%clk 0:01:45]}  Kg8 {[%clk 0:02:13]} 23. Qxg7# {[%clk 0:01:45]} 1-0


[Site "https://www.chess.com"]

[Event "Titled Tuesday Blitz April 12 Late 2022"]
[White "Bachmann, Axel"]
[Black "Broca Jimenez, Fernando"]
[WhiteFideId "3700488"]
[BlackFideId "5104742"]
[WhiteElo "2587"]
[BlackElo "2062"]
[Result "0-1"]
[Round "02"]
[TimeControl "180+1"]
[Date "2022.04.13"]
[WhiteClock "0:00:01"]
[BlackClock "0:00:09"]

1. d4 {[%clk 0:03:00]}  g6 {[%clk 0:02:56]} 2. g3 {[%clk 0:03:01]}  Bg7 {[%clk 0:02:55]} 3. e4 {[%clk 0:02:57]}  c5 {[%clk 0:02:53]} 4. d5 {[%clk 0:02:47]}  d6 {[%clk 0:02:44]} 5. Bg2 {[%clk 0:02:46]}  Nf6 {[%clk 0:02:45]} 6. Nc3 {[%clk 0:02:43]}  O-O {[%clk 0:02:45]} 7. Nge2 {[%clk 0:02:41]}  e5 {[%clk 0:02:39]} 8. O-O {[%clk 0:02:38]}  Nbd7 {[%clk 0:02:35]} 9. h3 {[%clk 0:02:32]}  Nh5 {[%clk 0:02:26]} 10. g4 {[%clk 0:02:27]}  Nf4 {[%clk 0:02:21]} 11. Nxf4 {[%clk 0:02:27]}  exf4 {[%clk 0:02:22]} 12. Bxf4 {[%clk 0:02:28]}  Ne5 {[%clk 0:02:22]} 13. Bg3 {[%clk 0:02:17]}  f5 {[%clk 0:02:20]} 14. exf5 {[%clk 0:02:07]}  gxf5 {[%clk 0:02:21]} 15. Re1 {[%clk 0:01:34]}  fxg4 {[%clk 0:02:13]} 16. Rxe5 {[%clk 0:01:25]}  gxh3 {[%clk 0:02:02]} 17. Rh5 {[%clk 0:01:07]}  hxg2 {[%clk 0:01:52]} 18. Qd3 {[%clk 0:01:08]}  h6 {[%clk 0:01:39]} 19. Re1 {[%clk 0:01:07]}  Bg4 {[%clk 0:01:19]} 20. Rh2 {[%clk 0:00:57]}  Qg5 {[%clk 0:00:58]} 21. Ne4 {[%clk 0:00:49]}  Qg6 {[%clk 0:00:48]} 22. Nxd6 {[%clk 0:00:42]}  Qxd3 {[%clk 0:00:40]} 23. cxd3 {[%clk 0:00:43]}  Rad8 {[%clk 0:00:20]} 24. Nxb7 {[%clk 0:00:23]}  Rxd5 {[%clk 0:00:20]} 25. Nxc5 {[%clk 0:00:15]}  Rxc5 {[%clk 0:00:19]} 26. Bd6 {[%clk 0:00:14]}  Rc2 {[%clk 0:00:16]} 27. Bxf8 {[%clk 0:00:15]}  Kxf8 {[%clk 0:00:16]} 28. Rxg2 {[%clk 0:00:15]}  Bf3 {[%clk 0:00:16]} 29. Rg3 {[%clk 0:00:14]}  Bd5 {[%clk 0:00:15]} 30. b4 {[%clk 0:00:06]}  Bd4 {[%clk 0:00:15]} 31. Rf1 {[%clk 0:00:02]}  Bxa2 {[%clk 0:00:14]} 32. Rg4 {[%clk 0:00:02]}  Bb6 {[%clk 0:00:14]} 33. Rf4+ {[%clk 0:00:02]}  Kg7 {[%clk 0:00:13]} 34. Re1 {[%clk 0:00:02]}  Rc4 {[%clk 0:00:09]} 35. dxc4 {[%clk 0:00:01]}  Kg6 {[%clk 0:00:09]} 0-1


[Site "https://www.chess.com"]